bitfinex/quotes_ETHUSD_20240810
["timestamp","ask_amount","ask_price","bid_price","bid_amount"]
[1723270491095,3.55589,2615.2,2614.8,0.1035234]
[1723270492567,1.644,2615.2,2614.8,2.0156634]
[1723270492762,1.644,2615.2,2614.9,4.2216]
[1723270492968,1.91176,2615.4,2615.1,1.91197]
[1723270492969,1.644,2615.4,2615.1,1.91197]
[1723270493203,1.644,2615.4,2615.0,0.10372047]
[1723270493406,7.29,2615.7,2615.0,0.35547889]
[1723270493565,7.29,2615.7,2615.2,1.91183]
[1723270493771,7.29,2615.7,2615.3,1.91178]
[1723270494193,7.29,2615.7,2615.4,0.10372047]
[1723270494389,7.29,2615.7,2615.4,0.49645352]
[1723270494778,7.29,2615.7,2615.4,4.31989352]
[1723270496020,1.644,2616.0,2615.7,1.91148]
[1723270496603,1.644,2616.0,2615.8,0.10372047]
[1723270498377,2.4236,2616.3,2615.7,1.91149]
[1723270498614,1.644,2616.2,2615.9,0.10372047]
[1723270498791,1.644,2616.4,2616.0,1.91127]
[1723270498988,1.644,2616.4,2616.0,2.01433375]
[1723270499586,1.644,2616.4,2616.0,0.10306375]
[1723270500020,3.55503,2616.4,2616.0,0.10306375]
[1723270500718,6.24608,2616.1,2616.0,0.10306375]
[1723270500903,1.91133,2616.0,2615.4,1.91171]
[1723270501217,1.644,2615.9,2615.5,1.91167]
[1723270501413,4.33484,2616.1,2615.5,1.91167]
[1723270501615,1.644,2616.0,2615.5,1.91167]
[1723270502115,1.91112,2616.3,2615.5,0.613288]
[1723270502296,1.644,2616.1,2615.7,4.30427]
[1723270502494,1.644,2616.1,2615.8,0.55]
[1723270504326,3.55525,2616.1,2615.4,4.3045]
[1723270504497,5.96461,2615.9,2615.5,0.55]
[1723270504693,4.0532,2615.9,2615.5,0.55]
[1723270505327,5.96458,2615.9,2615.5,0.55]
[1723270505528,5.96458,2615.9,2615.5,3.00784]
[1723270505529,4.0532,2615.9,2615.5,3.00784]
[1723270505795,1.644,2615.9,2615.6,0.09905291]
[1723270505996,1.91133,2616.0,2615.6,0.09905291]
[1723270505997,4.29456,2616.4,2615.8,1.91142]
[1723270506233,2.3835,2616.0,2615.6,0.09905291]
[1723270506411,1.644,2615.9,2615.5,2.46162]
[1723270506611,1.644,2615.9,2615.7,0.09905291]
[1723270506921,1.644,2615.9,2615.5,2.46162]
[1723270507125,1.644,2615.7,2615.6,0.09913485]
[1723270507320,3.55553,2615.7,2615.1,1.91192]
[1723270507536,2.3835,2615.6,2615.2,0.09913485]
[1723270507696,1.644,2615.3,2615.2,0.09913485]
[1723270507894,1.644,2615.3,2614.9,1.91209]
[1723270508137,1.644,2615.3,2615.0,0.09913485]
[1723270508738,1.644,2615.5,2615.0,0.09913485]
[1723270509032,1.644,2615.5,2615.1,1.91193]
[1723270509251,1.91142,2615.9,2615.0,0.09913485]
[1723270509252,2.3835,2615.9,2615.5,1.91162]
[1723270509440,2.3835,2615.9,2615.2,2.43806911]
[1723270509441,1.644,2616.0,2615.4,1.91174]
[1723270509760,2.3835,2615.7,2615.5,0.09945446]
[1723270509961,2.3835,2615.7,2615.2,3.82373]
[1723270510118,2.3835,2615.7,2615.3,2.01127446]
[1723270510439,1.644,2615.8,2615.3,0.09945446]
[1723270510648,1.644,2615.8,2615.5,1.91166]
[1723270510856,1.644,2615.8,2615.5,1.91163]
[1723270511018,1.644,2616.0,2615.6,0.0992004]
[1723270511218,4.175936,2616.0,2615.6,0.0992004]
[1723270512041,4.175936,2616.0,2615.4,1.91169]
[1723270512042,1.644,2615.8,2615.4,1.91169]
[1723270512355,4.0275,2615.8,2615.3,1.91178]
[1723270512525,1.91126,2616.1,2615.5,0.09921679]
[1723270512740,1.644,2615.9,2615.4,2.4617]
[1723270513051,1.644,2615.9,2615.6,0.09921679]
[1723270513216,1.644,2615.9,2615.4,2.4617]
[1723270513554,1.644,2615.9,2615.4,2.70787]
[1723270513754,1.644,2615.9,2615.5,0.09923316]
[1723270514466,1.644,2615.9,2615.5,2.01090316]
[1723270514667,1.644,2615.9,2615.6,1.9116]
[1723270515080,1.644,2615.9,2615.7,0.09916761]
[1723270517343,1.644,2615.9,2615.8,0.09919219]
[1723270517551,1.644,2615.9,2615.6,1.9116]
[1723270517750,1.644,2615.9,2615.7,0.09919219]
[1723270519257,1.644,2615.9,2615.7,2.01068219]
[1723270520452,1.91106,2616.4,2615.9,1.91137]
[1723270520666,1.644,2616.2,2615.9,1.91137]
[1723270520868,1.644,2616.2,2615.8,0.55]
[1723270520869,1.644,2616.2,2616.0,0.09801286]
[1723270521068,2.4317,2616.1,2616.0,0.09801286]
[1723270521277,2.4317,2616.1,2615.7,1.91148]
[1723270521583,1.644,2616.2,2615.7,4.704491]
[1723270521886,1.644,2616.2,2615.8,0.09801286]
[1723270522875,1.644,2616.2,2615.8,2.00943286]
[1723270523174,1.644,2616.2,2615.9,1.91138]
[1723270523381,1.644,2616.2,2615.7,3.82293]
[1723270523579,1.644,2616.2,2615.8,0.09801286]
[1723270523871,1.644,2616.2,2615.8,2.00945286]
[1723270524250,1.644,2616.2,2615.9,1.91137]
[1723270524877,1.644,2616.2,2616.0,0.09801286]
[1723270525669,4.0757,2616.2,2616.0,0.09801286]
[1723270526193,4.0757,2616.2,2616.1,0.09779166]
[1723270526394,4.0757,2616.2,2615.8,1.91144]
[1723270526687,4.0757,2616.2,2615.9,0.09779166]
[1723270528372,5.98691,2616.2,2615.9,0.09779166]
[1723270528677,5.98691,2616.2,2615.7,1.91153]
[1723270528983,1.644,2616.1,2615.7,1.91153]
[1723270529166,1.644,2616.1,2615.8,0.09779166]
[1723270530343,4.34291,2616.2,2615.8,0.09779166]
[1723270530344,2.4317,2616.2,2615.8,0.09779166]
[1723270530547,1.644,2616.1,2615.8,0.09779166]
[1723270531752,1.644,2616.1,2615.8,0.14876897]
[1723270533805,3.55528,2616.1,2615.8,0.14876897]
[1723270533989,5.98708,2615.9,2615.4,0.55]
[1723270534193,5.98708,2615.9,2615.5,0.14867066]
[1723270534975,1.644,2615.7,2615.5,0.14867066]
[1723270535186,2.4317,2615.6,2615.1,1.91193]
[1723270535373,2.4317,2615.6,2615.1,4.256124]
[1723270535584,2.4317,2615.6,2615.2,0.14867066]
[1723270535965,1.644,2615.5,2615.2,0.14867066]
[1723270536170,1.644,2615.3,2614.9,1.91209]
[1723270536370,2.4317,2615.2,2615.0,0.14867066]
[1723270537801,2.4317,2615.2,2615.1,0.14948192]
[1723270538110,2.4317,2615.2,2614.7,4.315662]
[1723270538408,2.4317,2615.2,2614.8,1.91218]
[1723270538573,2.4317,2615.2,2614.8,2.06166192]
[1723270538774,2.4317,2615.2,2614.8,2.50817231]
[1723270541070,1.644,2615.3,2614.9,1.91205]
[1723270541490,3.55583,2615.3,2615.0,0.14953929]
[1723270541801,3.55583,2615.3,2614.8,0.44651039]
[1723270542003,3.55583,2615.3,2614.9,0.14950651]
[1723270544075,1.644,2615.3,2614.9,0.14950651]
[1723270544686,1.644,2615.3,2614.9,0.6406714]
[1723270544887,1.644,2615.5,2614.9,0.14950651]
[1723270545094,1.644,2615.5,2615.3,1.91182]
[1723270545399,1.644,2615.5,2615.4,0.14950651]
[1723270545736,1.644,2615.5,2615.2,1.91189]
[1723270545886,1.644,2615.5,2615.4,0.14950651]
[1723270546092,1.644,2615.5,2615.2,1.91189]
[1723270546333,1.644,2615.5,2615.4,0.14950651]
[1723270546630,1.91195,2615.2,2614.6,1.91229]
[1723270546813,1.644,2615.1,2614.6,2.66089155]
[1723270546994,1.644,2615.1,2614.7,1.91225]
[1723270547193,1.644,2615.1,2614.7,1.91222]
[1723270547389,1.644,2615.1,2614.7,7.39052215]
[1723270547702,1.644,2615.1,2614.7,5.47829215]
[1723270548430,1.644,2615.3,2614.9,4.19561]
[1723270548730,1.644,2615.3,2614.9,1.91211]
[1723270548916,1.644,2615.5,2615.1,1.91196]
[1723270550038,1.644,2615.5,2615.1,1.91193]
[1723270550219,1.644,2615.5,2615.1,3.82386]
[1723270550592,1.644,2615.5,2615.1,1.91193]
[1723270550808,1.644,2615.5,2615.2,0.14955568]
[1723270551242,1.644,2615.5,2615.3,1.9118]
[1723270551387,1.644,2615.5,2615.3,3.82358]
[1723270551597,1.644,2615.5,2615.4,0.14955568]
[1723270552635,0.005,2615.7,2615.4,0.14955568]
[1723270552838,1.644,2615.6,2615.4,0.14955568]
[1723270553410,1.644,2615.6,2615.4,2.06129568]
[1723270553719,1.649,2615.7,2615.5,1.91168]
[1723270553931,1.649,2615.7,2615.4,0.54686325]
[1723270554122,1.649,2615.7,2615.6,0.14936717]
[1723270554306,1.649,2615.7,2615.3,3.82356]
[1723270554495,1.649,2615.7,2615.6,0.14936717]
[1723270554701,1.649,2615.7,2615.4,1.91175]
[1723270554900,2.4217,2615.7,2615.6,0.14933439]
[1723270555093,4.0657,2615.7,2615.1,1.91192]
[1723270555330,1.644,2615.5,2615.0,0.55]
[1723270555539,4.7666,2615.7,2615.0,0.55]
[1723270555540,1.91166,2615.6,2615.2,0.1493262]
[1723270555746,1.644,2615.3,2615.0,2.462]
[1723270555911,1.644,2615.3,2615.0,3.127757]
[1723270556099,1.644,2615.3,2615.0,1.215757]
[1723270556301,0.005,2615.7,2614.7,5.47830215]
[1723270556302,1.644,2615.1,2614.7,5.47830215]
[1723270556503,1.644,2615.1,2614.7,2.47830215]
[1723270557219,1.644,2615.1,2614.8,1.91215]
[1723270558339,1.644,2615.1,2614.9,2.46204]
[1723270558528,2.4167,2615.2,2614.9,4.37411]
[1723270559478,1.644,2615.3,2615.0,1.912]
[1723270560193,7.29,2615.6,2615.1,1.91197]
[1723270560366,1.644,2615.5,2615.1,1.91197]
[1723270560563,1.644,2615.5,2615.1,1.91193]
[1723270561789,1.644,2615.3,2614.9,2.46207]
[1723270561971,1.644,2615.1,2614.9,0.55]
[1723270562176,1.644,2615.1,2614.7,1.91219]
[1723270562503,1.644,2615.1,2614.7,2.832897]
[1723270562849,3.55614,2614.9,2614.3,2.3825]
[1723270563207,1.644,2614.7,2614.3,1.91251]
[1723270563764,2.4914,2614.8,2614.3,3.82502]
[1723270564205,2.4914,2614.8,2614.3,1.91251]
[1723270564430,2.4914,2614.8,2614.4,0.55]
[1723270564707,2.4914,2614.8,2614.3,1.91251]
[1723270564909,2.4914,2614.8,2614.3,3.82502]
[1723270565207,2.4914,2614.8,2614.4,1.91248]
[1723270565771,2.4914,2614.8,2614.5,0.1492852]
[1723270566982,2.4914,2614.8,2614.4,1.91247]
[1723270567566,2.4914,2614.8,2614.5,0.14983446]
[1723270568679,2.4914,2614.8,2614.5,2.06220446]
[1723270569313,2.4914,2614.8,2614.5,0.14983446]
[1723270569610,2.4914,2614.8,2614.2,4.91261]
[1723270569823,4.40363,2614.8,2614.2,4.91261]
[1723270570110,4.40363,2614.8,2614.3,0.14983446]
[1723270570411,4.40363,2614.8,2614.2,4.91261]
[1723270570565,4.40363,2614.8,2614.3,1.91255]
[1723270570786,4.40363,2614.8,2614.3,2.06238446]
[1723270571126,1.91227,2614.7,2614.3,0.14983446]
[1723270571422,1.91227,2614.7,2614.2,4.91261]
[1723270571628,2.4914,2614.8,2614.3,2.06233446]
[1723270572194,4.40361,2614.8,2614.3,2.06233446]
[1723270573489,6.31636,2614.4,2614.3,0.14983446]
[1723270573793,1.91264,2614.2,2613.7,1.91299]
[1723270573988,3.82531,2614.2,2613.5,4.29558]
[1723270574193,4.40414,2614.1,2613.5,4.725128]
[1723270574535,4.40414,2614.1,2613.6,0.1398455]
[1723270575431,2.4914,2614.1,2613.6,0.1398455]
[1723270575591,1.91282,2614.0,2613.6,0.1398455]
[1723270575789,1.91282,2614.0,2613.4,4.91321]
[1723270575991,1.91282,2614.0,2613.5,0.6898455]
[1723270576840,1.91282,2614.0,2613.5,2.6029555]
[1723270577738,1.91296,2613.8,2613.5,0.1398455]
[1723270577949,4.40436,2613.8,2613.5,0.1398455]
[1723270578112,4.40436,2613.8,2613.3,1.91324]
[1723270578302,4.40436,2613.8,2613.6,0.14049346]
[1723270578643,5.036078,2613.8,2613.7,0.14049346]
[1723270578946,5.036078,2613.8,2613.1,1.91339]
[1723270579098,0.5036078,2613.7,2613.1,1.91339]
[1723270579597,0.5036078,2613.7,2613.1,1.91338]
[1723270579802,4.40436,2613.8,2613.1,1.91338]
[1723270580616,2.4914,2613.8,2613.3,1.91323]
[1723270580819,2.4914,2613.8,2613.5,1.91307]
[1723270581045,2.3234,2614.0,2613.5,1.91307]
[1723270581216,2.3234,2614.0,2613.6,0.14049346]
[1723270581543,4.23618,2614.0,2613.6,0.14049346]
[1723270581902,2.3234,2614.0,2613.6,2.05355346]
[1723270582428,2.3234,2614.0,2613.6,0.13953018]
[1723270582628,3.476005,2614.0,2613.6,0.13953018]
[1723270584051,5.388785,2614.0,2613.5,1.91307]
[1723270584355,5.388785,2614.0,2613.6,0.14046136]
[1723270585061,1.91285,2613.9,2613.6,0.14046136]
[1723270585243,0.7301635,2613.8,2613.3,1.91324]
[1723270585440,1.91285,2613.9,2613.4,0.14046136]
[1723270590858,7.29,2614.2,2613.7,1.91295]
[1723270591050,16.388,2614.4,2613.7,1.91295]
[1723270591051,1.91261,2614.3,2613.7,4.24285]
[1723270591254,3.55141,2614.3,2613.8,0.14223285]
[1723270591545,1.6388,2614.3,2613.8,1.91292]
[1723270591866,4.23592,2614.4,2613.9,2.05507285]
[1723270592744,4.23592,2614.4,2613.9,3.96788285]
[1723270592961,4.23592,2614.4,2613.9,2.05504285]
[1723270594052,2.3234,2614.4,2613.9,2.05504285]
[1723270594259,2.3234,2614.4,2613.9,3.96784285]
[1723270595104,4.2359,2614.4,2613.9,2.05503285]
[1723270595259,5.388477,2614.4,2613.9,2.05503285]
[1723270595761,3.475977,2614.4,2614.0,1.91277]
[1723270596159,11.11476,2614.6,2614.1,2.05455183]
[1723270596160,9.20237,2614.6,2614.1,2.05455183]
[1723270596359,11.52577,2614.6,2614.1,2.05455183]
[1723270597284,11.52577,2614.6,2614.2,1.91262]
[1723270597285,9.6134,2614.6,2614.2,1.91262]
[1723270597488,11.4151456,2614.6,2614.2,1.91262]
[1723270597706,11.4151456,2614.6,2614.3,0.14187183]
[1723270597909,4.1251456,2614.6,2614.3,0.14187183]
[1723270598103,4.1251456,2614.6,2614.1,4.2426]
[1723270598273,2.3234,2614.6,2614.4,0.14187183]
[1723270598472,2.3234,2614.6,2614.1,6.15526]
[1723270598677,2.3234,2614.6,2614.5,0.14187183]
[1723270599006,4.23573,2614.6,2614.1,4.24256]
[1723270599168,4.23573,2614.6,2614.5,0.14187183]
[1723270599374,4.9136826,2614.6,2614.1,4.24256]
[1723270599609,4.9136826,2614.6,2614.5,0.14187183]
[1723270600087,4.9136826,2614.6,2614.1,4.24256]
[1723270600259,4.9136826,2614.6,2614.5,0.14187183]
[1723270600460,4.9136826,2614.6,2614.1,4.24256]
[1723270600964,4.9136826,2614.6,2614.2,0.14187183]
[1723270601499,5.86018,2614.9,2614.3,1.91249]
[1723270601699,6.15717,2615.0,2614.3,1.91249]
[1723270601890,6.15717,2615.0,2614.4,1.91247]
[1723270602093,6.15717,2615.0,2614.4,2.05389876]
[1723270602288,6.15717,2615.0,2614.4,0.14142876]
[1723270602289,1.91219,2614.8,2614.4,0.14142876]
[1723270602670,1.91219,2614.8,2614.3,1.91253]
[1723270602866,1.91219,2614.8,2614.4,0.14142876]
[1723270603280,1.91219,2614.8,2614.2,1.91258]
[1723270603486,4.24506,2615.0,2614.4,4.32805]
[1723270603994,4.24506,2615.0,2614.5,0.14116627]
[1723270604974,4.24506,2615.0,2614.5,2.05356627]
[1723270605585,6.15715,2615.0,2614.5,2.05356627]
[1723270605792,4.24506,2615.0,2614.5,2.05356627]
[1723270605971,4.24506,2615.0,2614.5,0.14116627]
[1723270606171,1.91212,2614.9,2614.5,0.14116627]
[1723270607136,3.8243,2614.9,2614.5,0.14116627]
[1723270607281,1.91212,2614.9,2614.5,0.14116627]
[1723270610418,1.91227,2614.7,2614.5,0.14116627]
[1723270610609,3.82429,2614.9,2614.3,2.46253]
[1723270610915,4.2912526,2614.9,2614.4,0.14109246]
[1723270611502,1.91241,2614.5,2614.4,0.14109246]
[1723270611840,1.91252,2614.4,2613.9,1.91278]
[1723270611995,1.645,2614.2,2614.0,0.140871]
[1723270612193,1.645,2614.2,2613.3,1.91325]
[1723270612194,1.91279,2614.0,2613.5,4.32868]
[1723270612431,1.645,2613.7,2613.3,4.32882]
[1723270612595,1.91279,2614.0,2613.3,1.91322]
[1723270612796,1.645,2613.5,2613.4,0.13623507]
[1723270613737,1.91292,2613.8,2613.4,0.13623507]
[1723270613943,2.337369,2614.0,2613.4,0.13623507]
[1723270614102,3.951,2614.1,2613.5,4.32874]
[1723270614302,5.8637,2614.1,2613.6,1.91305]
[1723270614647,1.91266,2614.2,2613.7,1.91299]
[1723270615107,1.91266,2614.2,2613.8,0.13679292]
[1723270615545,1.91266,2614.2,2613.6,3.82607]
[1723270615745,1.91258,2614.3,2613.9,0.13679292]
[1723270615915,0.615811,2614.2,2613.6,1.91302]
[1723270616114,1.91258,2614.3,2613.7,0.55]
[1723270616316,1.91258,2614.3,2613.7,0.68679292]
[1723270616942,1.91217,2614.9,2614.4,1.91244]
[1723270617240,2.336687,2614.9,2614.4,1.91244]
[1723270617447,4.248857,2614.9,2614.5,0.13666164]
[1723270617609,4.248857,2614.9,2614.3,1.91255]
[1723270617815,2.336687,2614.9,2614.4,0.13666164]
[1723270618130,2.336687,2614.9,2614.4,2.04913164]
[1723270618312,2.336677,2614.9,2614.4,2.04913164]
[1723270618833,4.248837,2614.9,2614.4,2.04913164]
[1723270619130,1.91221,2614.8,2614.4,0.13666164]
[1723270619432,1.91228,2614.7,2614.4,0.13666164]
[1723270619612,1.91228,2614.7,2614.2,1.91256]
[1723270619808,1.91228,2614.7,2614.5,0.13666164]
[1723270620018,0.25704637,2614.6,2614.2,1.91256]
[1723270620219,1.91228,2614.7,2614.2,1.91256]
[1723270620431,0.6581837,2614.8,2614.2,1.91256]
[1723270621424,2.5703837,2614.8,2614.3,1.91253]
[1723270622131,1.91226,2614.7,2614.2,1.91256]
[1723270622332,2.36052037,2614.7,2614.0,4.9127]
[1723270622634,1.91242,2614.5,2614.1,0.55]
[1723270622827,1.91234,2614.6,2614.1,0.55]
[1723270624125,1.91234,2614.6,2614.1,2.46269]
[1723270625538,1.91252,2614.4,2613.7,2.4198]
[1723270625745,1.91252,2614.4,2613.8,1.91289]
[1723270625919,1.91252,2614.4,2613.8,2.04955984]
[1723270628807,1.91256,2614.3,2613.8,2.04955984]
[1723270629746,4.27236,2614.5,2613.8,2.04953984]
[1723270630046,1.91248,2614.4,2613.9,1.91281]
[1723270630531,1.91248,2614.4,2614.0,0.13666984]
[1723270631541,2.80816037,2614.7,2614.0,0.13666984]
[1723270631734,2.3599,2614.7,2614.3,1.91255]
[1723270632249,2.3599,2614.7,2614.4,0.13666984]
[1723270632736,4.27216,2614.7,2614.4,0.13666984]
[1723270633110,4.27216,2614.7,2614.2,1.91262]
[1723270633310,4.27216,2614.7,2614.5,0.13634169]
[1723270633543,3.373438,2614.7,2614.3,1.91255]
[1723270633754,1.91222,2614.8,2614.6,0.13634169]
[1723270634043,3.82447,2614.8,2614.7,0.13634169]
[1723270634359,3.82447,2614.8,2614.3,1.91255]
[1723270634360,4.838007,2614.8,2614.3,1.91255]
[1723270634514,2.925757,2614.8,2614.7,0.13634169]
[1723270635024,2.925757,2614.8,2614.3,1.91255]
[1723270635224,2.925757,2614.8,2614.4,0.13634169]
[1723270635424,0.9236657,2614.7,2614.4,0.13634169]
[1723270642780,3.82482,2614.5,2614.4,0.13634169]
[1723270643163,1.91252,2614.4,2613.8,4.9129]
[1723270643735,1.91252,2614.4,2613.9,1.91282]
[1723270643933,1.91241,2614.5,2613.9,1.91281]
[1723270644386,2.4762,2614.6,2614.1,1.91265]
[1723270644545,2.4762,2614.6,2614.1,1.91264]
[1723270644877,4.38825,2615.0,2614.4,1.91242]
[1723270645235,1.91213,2614.9,2614.4,1.91242]
[1723270645437,1.91239,2614.6,2614.0,2.3588]
[1723270645778,2.4762,2614.5,2614.0,4.91276]
[1723270647312,4.38862,2614.5,2614.0,1.91276]
[1723270647495,5.018719,2614.5,2614.0,1.91276]
[1723270649387,1.91248,2614.4,2613.9,1.9128]
[1723270649696,1.645,2614.3,2613.8,4.91288]
[1723270649892,1.645,2614.3,2613.8,1.91288]
[1723270650113,1.645,2614.3,2613.8,3.82576]
[1723270650680,1.645,2614.3,2613.9,1.91285]
[1723270654277,1.645,2614.3,2614.0,1.91276]
[1723270655027,1.645,2614.3,2614.0,3.82552]
[1723270655321,1.645,2614.3,2614.2,1.91263]
[1723270655489,1.645,2614.5,2614.2,1.91263]
[1723270655697,1.645,2614.5,2614.3,1.91255]
[1723270655877,1.645,2614.7,2614.4,2.04879204]
[1723270656076,1.645,2614.7,2614.4,0.13631204]
[1723270656322,1.645,2614.7,2614.2,1.91258]
[1723270656488,1.645,2614.7,2614.5,0.13631204]
[1723270656694,1.645,2614.7,2614.3,0.55]
[1723270656890,1.645,2614.7,2614.4,0.13631204]
[1723270657618,1.645,2614.7,2614.3,1.91254]
[1723270657829,2.4762,2614.8,2614.5,0.13631204]
[1723270658017,1.645,2614.5,2614.3,1.91254]
[1723270659607,1.645,2614.5,2614.2,3.82517]
[1723270660233,1.645,2614.5,2614.2,1.91258]
[1723270660446,1.645,2614.5,2614.2,3.82517]
[1723270662131,1.645,2614.5,2614.2,3.82516]
[1723270662451,1.645,2614.5,2614.2,1.91258]
[1723270662747,1.645,2614.3,2614.0,1.91273]
[1723270662936,1.645,2614.3,2614.0,3.82546]
[1723270663121,1.645,2614.3,2614.0,1.91273]
[1723270663310,1.645,2614.5,2614.1,1.91265]
[1723270663709,1.645,2614.5,2614.1,3.82531]
[1723270664738,1.645,2614.5,2614.1,1.91265]
[1723270665153,1.645,2614.5,2614.3,3.8251]
[1723270665318,1.645,2614.5,2614.3,1.91255]
[1723270665519,1.645,2614.5,2614.3,1.91251]
[1723270666017,4.1295,2614.7,2614.3,1.91251]
[1723270666437,1.645,2614.7,2614.3,1.91251]
[1723270667248,1.645,2614.7,2614.3,3.82501]
[1723270667540,1.645,2614.7,2614.3,3.82502]
[1723270667842,1.645,2614.7,2614.3,1.9125]
[1723270668023,1.645,2614.7,2614.3,3.82501]
[1723270668751,2.4661,2615.2,2614.4,1.91247]
[1723270669046,2.4661,2615.2,2614.9,1.91207]
[1723270669047,4.1111,2615.2,2614.9,1.91207]
[1723270669271,1.645,2615.2,2614.9,3.82414]
[1723270669409,1.645,2615.2,2614.9,1.91207]
[1723270670542,1.645,2615.2,2614.8,1.91218]
[1723270670846,1.645,2615.2,2615.0,0.13583639]
[1723270671013,1.645,2615.2,2614.8,1.91218]
[1723270671348,1.645,2615.2,2614.9,0.55]
[1723270671564,1.645,2615.2,2614.9,0.68583639]
[1723270673015,1.645,2615.2,2614.9,2.59790639]
[1723270673238,1.645,2615.2,2615.0,1.91199]
[1723270673647,1.645,2615.2,2614.9,0.55]
[1723270674113,1.645,2615.2,2615.0,0.13583639]
[1723270675415,2.4661,2615.1,2615.0,0.13583639]
[1723270675644,4.37807,2615.1,2615.0,0.13583639]
[1723270675853,4.37807,2615.1,2614.5,1.91237]
[1723270676062,4.37807,2615.1,2615.0,0.13513948]
[1723270676245,1.645,2615.0,2614.6,3.55]
[1723270676452,1.645,2615.0,2614.6,2.46233]
[1723270676659,1.645,2615.0,2614.6,6.1998]
[1723270676854,1.645,2615.0,2614.6,5.46233]
[1723270677831,3.55706,2615.0,2614.6,3.0]
[1723270678036,3.55706,2615.0,2614.5,1.91237]
[1723270678648,4.1111,2614.8,2614.3,1.91249]
[1723270678866,4.1111,2614.8,2614.4,0.55]
[1723270679035,1.645,2614.6,2614.1,1.91263]
[1723270679246,1.645,2614.6,2614.1,2.343733]
[1723270679480,2.4661,2614.5,2614.1,1.91263]
[1723270679649,2.4661,2614.5,2614.1,3.82529]
[1723270680047,1.645,2614.4,2613.9,1.91278]
[1723270680248,1.645,2614.4,2614.0,2.343848]
[1723270681582,1.645,2614.4,2614.1,0.55]
[1723270681887,1.645,2614.4,2614.2,1.91259]
[1723270682185,2.3858,2614.8,2614.5,1.91234]
[1723270682391,0.23858,2614.7,2614.5,1.91234]
[1723270682682,1.645,2614.9,2614.5,1.91234]
[1723270683183,1.645,2614.9,2614.3,1.9125]
[1723270683384,3.55712,2614.9,2614.4,0.55]
[1723270683593,4.151401,2614.9,2614.4,0.55]
[1723270684163,3.55726,2614.7,2614.1,4.91264]
[1723270684356,3.55726,2614.7,2614.2,0.55]
[1723270685561,3.55726,2614.7,2614.2,2.46258]
[1723270685754,3.55726,2614.7,2614.3,0.13074577]
[1723270685954,3.55726,2614.7,2614.2,2.46258]
[1723270686155,3.55726,2614.7,2614.3,0.13074577]
[1723270686380,3.55726,2614.7,2614.2,2.46258]
[1723270686579,3.55726,2614.7,2614.4,0.13074577]
[1723270686768,3.55726,2614.7,2614.2,2.46258]
[1723270686981,3.55726,2614.7,2614.5,0.13074577]
[1723270687178,4.4022101,2614.7,2614.2,2.46258]
[1723270687384,3.55726,2614.7,2614.6,0.13074577]
[1723270687697,3.55726,2614.7,2614.6,0.13110654]
[1723270687862,3.55726,2614.7,2614.2,2.46258]
[1723270688059,3.55726,2614.7,2614.3,0.13110654]
[1723270688277,3.55726,2614.7,2614.2,2.46258]
[1723270688701,3.55726,2614.7,2614.3,0.13110654]
[1723270688868,3.55726,2614.7,2614.2,2.46258]
[1723270689071,3.55726,2614.7,2614.3,0.13110654]
[1723270689389,3.55726,2614.7,2614.2,2.46258]
[1723270689595,1.645,2614.7,2614.4,0.13110654]
[1723270689810,2.3858,2614.8,2614.4,1.91247]
[1723270689984,2.3858,2614.8,2614.5,0.13110654]
[1723270690181,4.0308,2615.0,2614.6,1.91233]
[1723270690703,4.0308,2615.0,2614.7,0.13110654]
[1723270692285,1.645,2615.0,2614.7,0.13110654]
[1723270698093,4.2977,2615.2,2614.7,0.13110654]
[1723270698397,1.645,2615.0,2614.7,0.13110654]
[1723270699732,1.645,2615.0,2614.7,2.04332654]
[1723270702763,1.645,2615.0,2614.7,0.13110654]
[1723270703461,1.645,2615.0,2614.7,2.04336654]
[1723270703828,5.9427,2615.2,2614.7,2.04336654]
[1723270704032,5.9427,2615.2,2614.8,1.91211]
[1723270704033,4.0308,2615.2,2614.8,1.91211]
[1723270704566,4.0308,2615.2,2614.9,0.13081134]
[1723270705473,12.80059026,2615.8,2614.9,0.13081134]
[1723270705474,2.4662,2615.5,2614.9,2.04288134]
[1723270705762,4.1112,2615.5,2615.1,1.91196]
[1723270705968,4.1112,2615.5,2615.2,0.13077855]
[1723270706328,4.1112,2615.5,2615.0,2.46197]
[1723270706530,4.1112,2615.5,2615.1,0.13077855]
[1723270707866,6.0229,2615.5,2615.1,0.13077855]
[1723270708167,4.37809,2615.2,2615.1,0.13077855]
[1723270708331,1.912,2615.1,2614.6,1.91229]
[1723270708544,1.645,2614.9,2614.7,0.13030313]
[1723270710970,2.4662,2614.8,2614.7,0.13030313]
[1723270711673,2.4662,2614.8,2614.5,1.91236]
[1723270711876,2.4662,2614.8,2614.7,0.13030313]
[1723270712871,4.1112,2615.1,2614.7,2.04256313]
[1723270713994,1.645,2615.1,2614.8,1.91218]
[1723270714198,1.645,2615.1,2614.8,2.36265431]
[1723270714694,1.645,2615.1,2614.9,0.13030313]
[1723270716190,1.645,2615.1,2615.0,0.13030313]
[1723270716551,1.645,2615.1,2614.7,1.91226]
[1723270716755,1.645,2615.1,2614.8,0.13030313]
[1723270717591,2.4662,2615.6,2614.9,2.46208]
[1723270717774,2.4662,2615.6,2615.1,1.91193]
[1723270717775,1.645,2615.5,2615.1,1.91193]
[1723270718093,1.645,2615.5,2615.2,0.13030313]